Workbook

Sheet HK-D01
A1: LOPEZ LABS EMISSIONS TEST DATA FORM | L1: DATA INPUT SCREEN:
A2: Revised Jan 28/09
A3: RUN No. | C3: =RunNumber -> HKK-15 | E3: Heater ID | F3: =Q8 -> HK | H3: DATE | J3: =DATE -> 2009-02-04 | L3: Instructions: | N3: Enter data only into fields that are
A4: Wood Moisture % | C4: =AVERAGE(Moisture) -> 20 | E4: Time since last burn | G4: =TimeSinceLast -> 24 | H4: Ambient Temperature | J4: =AmbientTemperature -> 5F | N4: shaded like this box
A5: Total Weight lbs | C5: =SUM(PcWt)+WtKindl-UnburnedFuel -> 60.6 | E5: Start Time | G5: =(StartTime) -> 11:12:00 | N5: Slide graph over when done and start test
A6: Kindling Weight lbs | C6: =KindlingWeight -> 4.5 | E6: FUELING | L6: GENERAL
A7: Number of Pieces | C7: =COUNT(PcWt) -> 8 | E7: Fuel Type.......................... | H7: =FuelType -> Wh. Birch | L7: RUN No. | N7: HKK-15 | O7: DATE | Q7: 2009-02-04
A8: Fuel Surface/Vol | C8: =(AVERAGE(Length)+SUM(Circumf))/(WtFuel-WtKindl) ->  | E8: Fuel Density...................... | H8: =O15 -> smaller towards top | L8: Time since last burn | N8: 24 | O8: HEATER ID | Q8: HK
A9: Average Pc. Wt. lbs | C9: =AVERAGE(PcWt) -> 7.0125 | E9: Unburned Fuel................. | G9: =UnFuel -> 0 | H9: =UnFuel -> 0 | L9: Start Time | N9: 11:12:00 | O9: Ambient Temperature | Q9: 5F
A10: Run Length hrs | C10: 1.2 | O10: Weather | P10: clear, slight wind | Q10: Flurries, calm
A11: Av. Stack Temp F | C11: =AVERAGE(StackTemp) -> 377
A12: Av. O2% | C12: =G14 -> 12.04 | E12: GAS DATA FROM TESTO SPREADSHEET | L12: FUELING
A13: Av. CO% | C13: =AVERAGE(CO)/10000 -> 0.130686 | F13: StackTemp | G13: O2% x10 | H13: ppm CO | O13: Fuel Configuration:
A14: Stack Temp Factor | C14: =SQRT(528/(460+AvStackTemp)) -> 0.7942445296 | F14: 377 | G14: 12.04 | H14: 1306.86 | L14: Fuel Type | N14: Wh. Birch | O14: 2222
A15: Stack Dilution Factor | C15: =20.9/(20.9-_AvO2) -> 2.358916479 | O15: smaller towards top
A16: Burn Rate dry kg/hr | C16: =((WtFuel-(UnburnedFuel*(1+AvMoisture/100)))/RunLength)*(1-(AvMoisture/100))/2.2 -> 18.36363636 | L16: Kindling Weight | N16: 4.5
A17: Boiling of Water Loss% | C17: =(8.05+0.0035*(AvStackTemp-70))+(2.58+0.00114*AvStackTemp) -> 12.13428 | L17: Unburned Fuel | N17: 0
A18: CO Loss % | C18: =gmKgCO*9.75/86 -> 2.07253793
A19: HC Loss % | C19: =gmKgCondar*33/86 -> 0.8004564583
A20: Dry Gas Loss % | C20: =((1.5*DilutionFactor*(AvStackTemp-70))/8600)*100 -> 12.63117486 | M20: DETAILED FUEL INFORMATION
A21: Filter Catch gm | C21: =Catch -> 0.1109 | M21: Piece # | N21: Weight | O21: Moisture | P21: Circumf | Q21: Length | R21: Shape
A22: g/kg Condar | C22: =(Catch/RunLength)*3.04*(DilutionFactor)/(0.4*StackTempFactor) -> 2.086038043 | M22: 1 | N22: 8.8 | O22: 20
A23: g/kg CO | C23: =59.3*AvCO*DilutionFactor -> 18.28084738 | M23: 2 | N23: 8.6 | O23: 20
A24: Combustion Effic | C24: =100-COLoss-HCLoss -> 97.12700561 | M24: 3 | N24: 7.7 | O24: 20
A25: Heat Trans. Effic | C25: =100-DryGasLoss-BoilWaterLoss -> 75.23454514 | M25: 4 | N25: 7.4 | O25: 20
A26: Overall Efficiency | C26: =HTransEffic*CombustEffic/100 -> 73.07306088 | M26: 5 | N26: 6.9 | O26: 20
A27: Filter | B27: Clean | C27: Dirty | D27: Wt. of | M27: 6 | N27: 5.9 | O27: 20
A28: Number | B28: Filter Wt. | C28: Filter Wt. | D28: Particulat | M28: 7 | N28: 5.5 | O28: 20
A29: 1 | B29: 1.0014 | C29: 1.1101 | D29: =IF(FiltDirty-FiltClean>0,FiltDirty-FiltClean,0) -> 0.1087 | M29: 8 | N29: 5.3 | O29: 20
A30: 2 | B30: 1.0065 | C30: 1.0087 | D30: 0.0022 | M30: 9
A31: 3 | D31: 0 | M31: 10
A32: 4 | D32: 0 | M32: 11
A33: 5 | D33: 0 | M33: 12
A34: 6 | D34: 0 | M34: 13
A35: Ctrl 1 | B35: 0 | C35: 0 | M35: 14
A36: Ctrl 2 | B36: 0 | C36: 0 | M36: 15
B37: Adjust | D37: =+COUNT(FiltClean)*(AVERAGE(CleanControl)-AVERAGE(DirtyControl)) -> 0 | M37: 16
B38: Total | D38: =SUM(D29:D34)+D37 -> 0.1109 | M38: 17
M39: 18
M40: 19
N41: Shape key: | P41: 1 | Q41: round
P42: 2 | Q42: half
P43: 3 | Q43: quarter
P44: 4 | Q44: smaller than quarter
P45: 5 | Q45: other
